bitfinex/quotes_BTCUSD_20250320
["timestamp","ask_amount","ask_price","bid_price","bid_amount"]
[1742466373353,0.47723783,85357.0,85356.0,0.0041692]
[1742466374223,0.46552283,85357.0,85356.0,0.0041692]
[1742466374627,0.14156109,85357.0,85356.0,0.0041692]
[1742466375031,0.68758609,85357.0,85356.0,0.0041692]
[1742466375211,0.46487208,85357.0,85356.0,0.0041692]
[1742466375416,0.69918208,85357.0,85356.0,0.0041692]
[1742466375685,0.71089708,85357.0,85356.0,0.0041692]
[1742466376086,0.46487208,85357.0,85356.0,0.0041692]
[1742466376293,0.71089708,85357.0,85356.0,0.0041692]
[1742466377510,0.71089708,85357.0,85356.0,0.0001692]
[1742466377932,0.71089708,85357.0,85356.0,0.0041692]
[1742466378136,0.46487208,85357.0,85356.0,0.0041692]
[1742466378340,0.46487208,85357.0,85356.0,0.0001692]
[1742466378753,0.46487208,85357.0,85356.0,0.0041692]
[1742466378958,0.32377431,85357.0,85356.0,0.0041692]
[1742466379160,0.00046332,85357.0,85356.0,0.0041692]
[1742466379368,0.00046332,85357.0,85356.0,1.5158842]
[1742466380204,0.02200322,85357.0,85356.0,1.5158842]
[1742466380743,0.02200322,85357.0,85356.0,1.5118842]
[1742466380979,0.02200322,85357.0,85356.0,1.5158842]
[1742466381420,0.00046332,85357.0,85356.0,1.5158842]
[1742466381630,0.00046332,85357.0,85356.0,1.5118842]
[1742466381834,0.00046332,85357.0,85356.0,1.63145923]
[1742466382034,3.2e-07,85357.0,85356.0,2.36619451]
[1742466382244,0.0003384,85378.0,85377.0,0.245967]
[1742466382441,0.0003384,85378.0,85377.0,1.57103646]
[1742466382654,0.0003384,85378.0,85377.0,1.61893646]
[1742466382861,0.02155202,85410.0,85409.0,0.087208]
[1742466383063,0.02155202,85410.0,85409.0,1.04753443]
[1742466383266,0.02155202,85410.0,85409.0,0.98374243]
[1742466383514,0.245815,85430.0,85409.0,0.97203443]
[1742466383691,3.04571537,85432.0,85413.0,0.234156]
[1742466383920,0.011706,85425.0,85409.0,0.97203443]
[1742466384121,0.012105,85427.0,85409.0,0.97203443]
[1742466384323,0.00012527,85414.0,85409.0,0.97203443]
[1742466384868,0.00012527,85414.0,85409.0,1.21790743]
[1742466385070,0.00012527,85414.0,85413.0,0.006]
[1742466385491,0.00012527,85414.0,85413.0,1.5]
[1742466386120,0.00012527,85414.0,85409.0,0.97203443]
[1742466386524,0.00012527,85414.0,85410.0,1.5]
[1742466386727,0.00012527,85414.0,85409.0,0.55784]
[1742466387137,0.00012527,85414.0,85409.0,0.56384]
[1742466387335,0.24585,85418.0,85409.0,0.006]
[1742466387336,0.234163,85411.0,85409.0,0.006]
[1742466387570,0.011708,85411.0,85394.0,0.55764]
[1742466387737,0.234156,85413.0,85395.0,0.3]
[1742466387938,0.03006896,85414.0,85409.0,0.006]
[1742466388139,0.01836196,85414.0,85409.0,0.006]
[1742466388497,0.01836196,85414.0,85397.0,0.3]
[1742466388746,0.245863,85413.0,85397.0,0.3]
[1742466388944,0.011708,85408.0,85397.0,0.3]
[1742466389149,0.011708,85408.0,85395.0,0.3]
[1742466389150,0.24588,85407.0,85395.0,0.3]
[1742466389348,0.011708,85406.0,85395.0,0.3]
[1742466389552,0.011708,85406.0,85394.0,0.56364]
[1742466389553,0.011709,85404.0,85394.0,0.56364]
[1742466389749,0.23418,85405.0,85394.0,0.56364]
[1742466389953,0.25802231,85411.0,85402.0,0.234185]
[1742466389954,0.01836422,85404.0,85402.0,0.234185]
[1742466390157,0.01836422,85404.0,85403.0,0.545892]
[1742466390381,0.02357677,85425.0,85416.0,0.011707]
[1742466390750,0.02357677,85425.0,85419.0,0.3]
[1742466390955,0.0003382,85428.0,85419.0,0.3]
[1742466390956,0.0003382,85428.0,85426.0,0.311706]
[1742466391383,0.0003382,85428.0,85417.0,0.011707]
[1742466391585,0.0003382,85428.0,85419.0,0.311706]
[1742466391785,0.0003382,85428.0,85426.0,0.245826]
[1742466391922,0.0003382,85428.0,85423.0,0.011706]
[1742466392122,0.0003382,85428.0,85425.0,0.245828]
[1742466392532,0.0003382,85428.0,85426.0,0.011706]
[1742466392796,0.0003382,85428.0,85423.0,0.011706]
[1742466392981,0.0003382,85428.0,85426.0,0.011706]
[1742466393565,0.0003382,85428.0,85426.0,0.311706]
[1742466393768,0.0007384,85427.0,85426.0,0.43128103]
[1742466393997,0.0007384,85427.0,85426.0,0.43728103]
[1742466394398,0.0007384,85427.0,85426.0,1.00343546]
[1742466395216,0.0007384,85427.0,85426.0,0.99743546]
[1742466395575,0.0007384,85427.0,85426.0,2.49743546]
[1742466396290,0.0007384,85427.0,85426.0,2.57933546]
[1742466396819,0.0007384,85427.0,85426.0,2.58533546]
[1742466397227,0.0007384,85427.0,85426.0,2.57933546]
[1742466397526,2e-07,85464.0,85463.0,0.245719]
[1742466397725,2e-07,85464.0,85463.0,0.97701503]
[1742466397959,0.00041771,85464.0,85463.0,0.98871503]
[1742466398325,0.00041771,85464.0,85463.0,0.43127503]
[1742466398534,0.00041771,85464.0,85458.0,0.15232]
[1742466398772,0.00041771,85464.0,85456.0,0.55744]
[1742466398959,0.00041771,85464.0,85449.0,0.3]
[1742466399160,0.01835054,85463.0,85450.0,0.234055]
[1742466399360,0.01835054,85463.0,85452.0,0.234048]
[1742466399532,0.01835054,85463.0,85456.0,0.234037]
[1742466399740,0.01835054,85463.0,85454.0,0.234042]
[1742466400116,0.01835054,85463.0,85456.0,0.234037]
[1742466400238,0.01835054,85463.0,85459.0,0.23403]
[1742466400452,0.01835054,85463.0,85461.0,0.234023]
[1742466400650,0.01835054,85463.0,85459.0,0.23403]
[1742466401285,0.01835054,85463.0,85458.0,0.234032]
[1742466401706,0.01835054,85463.0,85455.0,0.245743]
[1742466401924,0.01835054,85463.0,85456.0,0.234038]
[1742466402129,0.01835054,85463.0,85459.0,0.006]
[1742466403173,0.01835054,85463.0,85459.0,0.240025]
[1742466403376,0.01835054,85463.0,85455.0,0.234039]
[1742466403787,0.01835054,85463.0,85457.0,0.011701]
[1742466403954,0.01835054,85463.0,85458.0,0.234033]
[1742466404199,0.01835054,85463.0,85455.0,0.006]
[1742466404402,0.01835054,85463.0,85458.0,0.011701]
[1742466404613,0.00041771,85464.0,85458.0,0.011701]
[1742466404614,0.00041771,85464.0,85463.0,0.0117]
[1742466404817,0.00041771,85464.0,85462.0,0.234022]
[1742466405402,0.00041771,85464.0,85460.0,0.234027]
[1742466405601,0.00041771,85464.0,85461.0,1.5]
[1742466405807,0.0001694,85463.0,85462.0,0.234022]
[1742466406361,0.0001694,85463.0,85461.0,1.5]
[1742466406623,0.0001694,85463.0,85456.0,0.3]
[1742466406831,0.0001694,85463.0,85458.0,0.006]
[1742466407385,0.0001694,85463.0,85454.0,0.3]
[1742466407587,0.0001694,85463.0,85451.0,0.234052]
[1742466407993,0.0001694,85463.0,85461.0,0.006]
[1742466408207,0.0001694,85463.0,85462.0,0.011701]
[1742466408390,0.0001694,85463.0,85456.0,0.245739]
[1742466408554,0.01851985,85463.0,85454.0,0.017702]
[1742466408761,0.01851985,85463.0,85454.0,0.251744]
[1742466408959,0.01851985,85463.0,85460.0,0.011701]
[1742466409162,0.01851985,85463.0,85457.0,0.245736]
[1742466409163,0.01851985,85463.0,85462.0,0.011701]
[1742466409362,0.01851985,85463.0,85458.0,0.011701]
[1742466409560,0.01851985,85463.0,85456.0,0.3]
[1742466409761,0.01851985,85463.0,85454.0,0.551743]
[1742466409762,0.01851985,85463.0,85454.0,0.251743]
[1742466410038,0.01851985,85463.0,85454.0,0.245743]
[1742466410456,0.01851985,85463.0,85452.0,0.3]
[1742466410457,0.01851985,85463.0,85462.0,0.006]
[1742466410864,0.0001694,85463.0,85447.0,0.311703]
[1742466411065,0.011701,85461.0,85449.0,0.3]
[1742466411318,0.0001694,85463.0,85449.0,0.3]
[1742466411319,0.0118694,85463.0,85454.0,0.006]
[1742466411636,0.011701,85461.0,85449.0,0.3]
[1742466411839,0.011701,85462.0,85449.0,0.3]
[1742466412015,0.011701,85462.0,85445.0,0.3]
[1742466412211,0.011701,85459.0,85445.0,0.3]
[1742466412599,0.245726,85461.0,85445.0,0.3]
[1742466413527,0.234063,85447.0,85444.0,0.3]
[1742466413761,0.011701,85458.0,85440.0,0.23408]
[1742466413990,0.011702,85453.0,85440.0,0.41957503]
[1742466414410,0.011702,85453.0,85445.0,0.006]
[1742466414610,0.234046,85454.0,85445.0,0.006]
[1742466414769,0.245748,85454.0,85445.0,0.006]
[1742466414973,0.245748,85454.0,85440.0,0.41957503]
[1742466415315,0.234039,85456.0,85440.0,0.306]
[1742466415562,0.01835279,85451.0,85441.0,1.734079]
[1742466415787,0.01835279,85451.0,85443.0,0.234073]
[1742466416217,0.01835279,85451.0,85441.0,1.5]
[1742466417262,0.03005479,85451.0,85441.0,1.5]
[1742466417442,0.011703,85448.0,85441.0,1.5]
[1742466417749,0.245768,85446.0,85445.0,0.006]
[1742466418185,0.15004,85454.0,85440.0,0.0003386]
[1742466418537,0.26410879,85451.0,85441.0,0.006]
[1742466418742,0.03005479,85451.0,85441.0,0.006]
[1742466418917,0.01835279,85451.0,85440.0,0.0003386]
[1742466419334,0.011702,85450.0,85445.0,0.004]
[1742466419764,0.245758,85450.0,85445.0,0.004]
[1742466419941,0.011702,85450.0,85445.0,0.004]
[1742466420339,0.01835279,85451.0,85445.0,0.004]
[1742466420556,0.234057,85449.0,85445.0,0.004]
[1742466420749,0.011702,85450.0,85445.0,0.004]
[1742466421129,0.26410879,85451.0,85445.0,0.004]
[1742466421337,0.01835279,85451.0,85440.0,0.0003386]
[1742466421686,0.01835279,85451.0,85440.0,0.0063386]
[1742466422094,0.01835279,85451.0,85440.0,0.0003386]
[1742466422300,0.234055,85450.0,85440.0,0.0003386]
[1742466422534,0.011703,85446.0,85445.0,0.005]
[1742466422676,0.03005479,85451.0,85445.0,0.005]
[1742466423199,0.234055,85450.0,85445.0,0.005]
[1742466423403,0.26410879,85451.0,85445.0,0.005]
[1742466423786,0.245759,85450.0,85440.0,0.0003386]
[1742466423984,0.011703,85446.0,85440.0,0.0003386]
[1742466424193,0.234063,85447.0,85440.0,0.0053386]
[1742466424384,0.01835279,85451.0,85440.0,0.0053386]
[1742466424756,0.01835279,85451.0,85440.0,0.0003386]
[1742466424934,0.02347719,85448.0,85440.0,0.0003386]
[1742466425138,0.02347719,85448.0,85440.0,0.0053386]
[1742466425574,0.234073,85444.0,85440.0,0.0003386]
[1742466425773,0.245774,85445.0,85440.0,0.0053386]
[1742466425991,0.245776,85444.0,85440.0,0.0053386]
[1742466426187,0.245779,85443.0,85440.0,0.0053386]
[1742466426445,0.011703,85444.0,85440.0,0.0053386]
[1742466426672,0.011703,85441.0,85440.0,0.0053386]
[1742466427058,0.161063,85441.0,85440.0,0.0053386]
[1742466427188,0.14936,85441.0,85440.0,0.0003386]
[1742466427394,0.06947719,85448.0,85441.0,0.234079]
[1742466427598,0.14944,85447.0,85440.0,0.0053386]
[1742466428004,0.011703,85445.0,85440.0,0.0003386]
[1742466428202,0.011703,85441.0,85440.0,0.0003386]
[1742466428373,0.13127803,85441.0,85440.0,0.0063386]
[1742466428584,0.11957503,85441.0,85440.0,0.0063386]
[1742466428787,0.13127803,85441.0,85440.0,0.0003386]
[1742466429006,0.14963345,85441.0,85440.0,0.0003386]
[1742466429215,0.14963345,85441.0,85440.0,0.0053386]
[1742466430444,0.29879345,85441.0,85440.0,0.0003386]
[1742466430854,0.29879345,85441.0,85440.0,0.0063386]
[1742466431079,0.28043803,85441.0,85440.0,0.0063386]
[1742466431262,0.28043803,85441.0,85440.0,0.0003386]
[1742466431657,0.28043803,85441.0,85440.0,0.0033386]
[1742466432052,0.28043803,85441.0,85440.0,0.0003386]
[1742466432380,0.28043803,85441.0,85440.0,0.0033386]
[1742466432783,0.13127803,85441.0,85440.0,0.0033386]
[1742466432992,0.27999803,85441.0,85440.0,0.0033386]
[1742466435358,0.26924219,85448.0,85440.0,0.0033386]
[1742466435359,0.02347719,85448.0,85440.0,0.2491236]
[1742466435574,0.02347719,85448.0,85440.0,0.0033386]
[1742466436824,0.02347719,85448.0,85440.0,0.0150426]
[1742466437022,0.02347719,85448.0,85440.0,0.0033386]
[1742466437449,0.01835451,85447.0,85440.0,0.0003386]
[1742466437785,0.01835451,85447.0,85440.0,0.0013386]
[1742466438211,0.01835451,85447.0,85440.0,0.0003386]
[1742466438659,0.011703,85444.0,85440.0,0.0033386]
[1742466438835,0.245768,85446.0,85440.0,0.0033386]
[1742466439062,0.011703,85441.0,85440.0,0.0003386]
[1742466439565,0.011703,85441.0,85440.0,0.0033386]
[1742466439711,0.13127803,85441.0,85440.0,0.0033386]
[1742466440496,0.13127803,85441.0,85440.0,0.0003386]
[1742466440901,0.13127803,85441.0,85440.0,0.0033386]
[1742466441481,0.13127803,85441.0,85440.0,0.0003386]
[1742466441915,0.13127803,85441.0,85440.0,0.0053386]
[1742466444354,0.13127803,85441.0,85440.0,0.0003386]
[1742466444763,0.13127803,85441.0,85440.0,0.0043386]
[1742466445320,0.11957503,85441.0,85440.0,0.0043386]
[1742466445516,0.13127803,85441.0,85440.0,0.0043386]
[1742466445734,0.36535703,85441.0,85440.0,0.0043386]
[1742466445917,0.13127803,85441.0,85440.0,0.0043386]
[1742466447122,0.14963408,85441.0,85440.0,0.0043386]
[1742466449151,0.01835605,85441.0,85440.0,0.0043386]
[1742466449844,0.16559605,85441.0,85440.0,0.0043386]
[1742466450256,0.01835605,85441.0,85440.0,0.0043386]
[1742466450374,0.02634795,85449.0,85440.0,0.0043386]
[1742466450375,0.14724,85448.0,85440.0,0.0043386]
[1742466451395,0.14724,85448.0,85440.0,0.0003386]
[1742466451596,0.14724,85448.0,85441.0,0.245781]
[1742466452101,0.0031198,85449.0,85445.0,0.011703]
[1742466452299,0.0031198,85449.0,85448.0,0.011703]
[1742466452729,0.0031198,85449.0,85448.0,1.811703]
[1742466454972,0.0031198,85449.0,85448.0,1.817703]
[1742466456318,0.0031198,85449.0,85448.0,1.899103]
[1742466457264,0.0031198,85449.0,85448.0,0.006]
[1742466457421,0.0148218,85449.0,85448.0,0.006]
[1742466457621,0.1527505,85449.0,85448.0,0.006]
[1742466457988,0.1527505,85449.0,85436.0,0.234091]
[1742466457989,0.1410485,85449.0,85436.0,0.234091]
[1742466458392,0.29097435,85449.0,85448.0,0.006]
[1742466458586,0.41054938,85449.0,85448.0,0.006]
[1742466458786,0.245782,85441.0,85424.0,0.3]
[1742466458989,0.36535703,85441.0,85426.0,0.011706]
[1742466459192,0.11957503,85441.0,85440.0,0.0053386]
[1742466459472,0.13127803,85441.0,85440.0,0.0053386]
[1742466459662,0.13127803,85441.0,85440.0,0.0003386]
[1742466460061,0.13127803,85441.0,85440.0,0.0063386]
[1742466461289,0.13127803,85441.0,85440.0,0.0003386]
[1742466461800,0.13127803,85441.0,85440.0,0.0053386]
[1742466462133,0.14724,85441.0,85440.0,0.0003386]
[1742466462542,0.14724,85441.0,85440.0,0.0053386]
[1742466462743,0.158943,85441.0,85440.0,0.0053386]
[1742466463685,0.1772997,85441.0,85440.0,0.0053386]
[1742466463884,0.29687473,85441.0,85440.0,0.0053386]
[1742466465864,0.31641558,85441.0,85440.0,0.0053386]
[1742466466063,0.71861558,85441.0,85440.0,0.0053386]
[1742466466275,0.011708,85409.0,85394.0,0.01171]
[1742466466482,0.011708,85410.0,85395.0,0.01171]
[1742466466684,0.234163,85411.0,85396.0,0.01171]
[1742466466902,0.01836133,85407.0,85398.0,0.011709]
[1742466467267,0.01836133,85407.0,85404.0,0.011709]
[1742466467619,0.01836133,85407.0,85404.0,0.01183427]
[1742466468406,0.01836133,85407.0,85404.0,0.00012527]
[1742466468602,0.01836133,85407.0,85405.0,0.234178]
[1742466468820,0.01836133,85407.0,85406.0,0.311708]
[1742466469013,0.14724,85426.0,85411.0,0.245867]
[1742466469209,0.01836051,85418.0,85411.0,0.245867]
[1742466469824,0.01836051,85418.0,85408.0,0.545875]
[1742466470021,0.01836051,85418.0,85406.0,0.306]
[1742466470237,0.01836051,85418.0,85408.0,0.3]
[1742466470457,0.01836051,85418.0,85409.0,0.234167]
[1742466470655,0.01836051,85418.0,85412.0,0.234158]
[1742466470959,0.01836051,85418.0,85410.0,0.234162]
[1742466471376,0.01836051,85418.0,85406.0,0.3]
[1742466471782,0.245852,85417.0,85411.0,0.005]
[1742466472012,0.01836051,85418.0,85411.0,0.005]
[1742466472201,0.011706,85421.0,85406.0,0.545882]
[1742466472394,0.234137,85420.0,85405.0,0.311708]
[1742466472597,0.03552724,85422.0,85406.0,0.016708]
[1742466472819,0.23417,85408.0,85406.0,0.005]
[1742466473023,0.011708,85409.0,85404.0,0.00012527]
[1742466473248,0.011707,85413.0,85404.0,0.00012527]
[1742466473588,0.234154,85414.0,85406.0,0.004]
[1742466473738,0.35372903,85414.0,85406.0,0.004]
[1742466473939,0.36543603,85414.0,85406.0,0.004]
[1742466474256,0.11957503,85414.0,85406.0,0.004]
[1742466474624,0.11957503,85414.0,85404.0,0.00012527]
[1742466474796,0.02370626,85409.0,85404.0,0.00012527]
[1742466475145,0.01836079,85412.0,85411.0,0.234161]
[1742466475341,0.01836079,85412.0,85411.0,1.745869]
[1742466475646,0.01836079,85412.0,85411.0,2.045869]
[1742466476255,0.01836079,85412.0,85411.0,1.8]
[1742466476416,0.01836079,85412.0,85411.0,0.3]
[1742466476621,0.01836079,85412.0,85411.0,0.006]
[1742466476857,0.03006779,85412.0,85411.0,0.006]
[1742466477850,0.234171,85408.0,85396.0,1.5]
[1742466478068,0.011708,85409.0,85395.0,0.01171]
[1742466478270,0.245875,85409.0,85395.0,0.245913]
[1742466478733,0.01836079,85412.0,85399.0,0.011709]
[1742466478938,0.01836079,85412.0,85401.0,0.234188]
[1742466479306,0.01836079,85412.0,85404.0,0.00612527]
[1742466479756,0.01836079,85412.0,85404.0,0.00012527]
[1742466480163,0.234161,85411.0,85404.0,0.00012527]
[1742466480365,0.245869,85411.0,85404.0,0.00012527]
[1742466480501,0.234166,85410.0,85404.0,0.00512527]
[1742466480701,0.23417,85408.0,85404.0,0.00512527]
[1742466480902,0.245878,85408.0,85404.0,0.00512527]
[1742466481141,0.011708,85405.0,85404.0,0.00512527]
[1742466481317,0.36546103,85405.0,85404.0,0.00512527]
[1742466481933,0.38500188,85405.0,85404.0,0.00012527]
[1742466482337,0.38500188,85405.0,85404.0,0.00612527]
[1742466482623,0.11957503,85405.0,85404.0,0.00612527]
[1742466482828,0.50099303,85405.0,85404.0,0.00612527]
[1742466483003,0.51270103,85405.0,85404.0,0.00012527]
[1742466483204,0.011711,85388.0,85374.0,0.3]
[1742466483435,0.245929,85391.0,85376.0,0.234257]
[1742466483628,0.245929,85391.0,85375.0,0.011713]
[1742466483629,0.245931,85390.0,85375.0,0.011713]
[1742466483807,0.011711,85388.0,85374.0,0.3]
[1742466484010,0.14728,85392.0,85376.0,0.011712]
[1742466484214,0.15899,85392.0,85378.0,0.011712]
[1742466484370,0.02323834,85391.0,85379.0,0.234247]
[1742466484597,0.01171,85390.0,85376.0,0.245967]
[1742466484835,0.01836651,85389.0,85376.0,0.245967]
[1742466485061,0.01836651,85389.0,85377.0,0.245965]
[1742466485978,0.01836651,85389.0,85376.0,0.240255]
[1742466486197,0.01836651,85389.0,85378.0,0.234251]
[1742466487130,0.01836651,85389.0,85378.0,0.245963]
[1742466487560,0.01836651,85389.0,85377.0,0.006]
[1742466487973,0.011711,85386.0,85377.0,0.006]
[1742466488176,0.011711,85386.0,85374.0,0.0001695]
[1742466488177,0.011712,85378.0,85374.0,0.0001695]
[1742466488387,0.245973,85375.0,85374.0,0.0001695]
[1742466489036,0.26434278,85375.0,85374.0,0.0001695]
[1742466489631,0.26434278,85375.0,85374.0,0.0051695]
[1742466490126,0.01836978,85375.0,85374.0,0.0051695]
[1742466490332,0.14728,85380.0,85374.0,0.0051695]
[1742466490525,0.51281503,85380.0,85374.0,0.0051695]
[1742466490746,0.234251,85379.0,85374.0,0.0051695]
[1742466491014,0.011711,85386.0,85374.0,0.0051695]
[1742466491222,0.02340496,85385.0,85384.0,0.234235]
[1742466491423,0.00012506,85387.0,85386.0,0.011711]
[1742466492230,0.00012506,85387.0,85386.0,0.13128603]
[1742466492446,0.00012506,85387.0,85386.0,0.011711]
[1742466493079,0.00012506,85387.0,85386.0,0.017711]
[1742466493210,0.00012506,85387.0,85386.0,0.006]
[1742466494765,0.36563809,85387.0,85386.0,0.006]
[1742466495016,0.38400454,85387.0,85386.0,0.006]
[1742466495590,0.245946,85385.0,85374.0,0.1001695]
[1742466495821,0.11957503,85384.0,85374.0,0.1001695]
[1742466496203,0.234254,85378.0,85374.0,0.1001695]
[1742466496403,0.13128603,85384.0,85374.0,0.1001695]
[1742466496605,0.00012506,85387.0,85374.0,0.1001695]
[1742466496755,0.00012506,85387.0,85386.0,0.003]
[1742466497157,0.03020349,85387.0,85386.0,0.003]
[1742466497351,0.03020349,85387.0,85374.0,0.1001695]
[1742466497352,0.245941,85386.0,85374.0,0.1001695]
[1742466497552,0.03020349,85387.0,85374.0,0.1001695]
[1742466497553,0.01849249,85387.0,85374.0,0.1001695]
[1742466497972,0.01849249,85387.0,85374.0,0.3461445]
[1742466498182,0.01849249,85387.0,85375.0,0.011713]
[1742466498368,0.01849249,85387.0,85377.0,0.245965]
[1742466498583,0.01849249,85387.0,85377.0,0.011712]
[1742466498772,0.01849249,85387.0,85377.0,0.245965]
[1742466498980,0.01849249,85387.0,85386.0,0.311711]
[1742466499205,0.01849249,85387.0,85386.0,0.43128603]
[1742466499686,0.01849249,85387.0,85386.0,0.53145553]
[1742466500074,0.01849249,85387.0,85386.0,0.53745553]
[1742466500434,0.01849249,85387.0,85386.0,0.4178805]
[1742466500628,0.01849249,85387.0,85386.0,0.4118805]
[1742466501031,0.01849249,85387.0,85386.0,0.4178805]
[1742466502015,0.01849249,85387.0,85386.0,0.53745553]
[1742466503502,0.01849249,85387.0,85386.0,0.4178805]
[1742466503676,0.01849249,85387.0,85386.0,0.5178805]
[1742466503876,0.00012506,85387.0,85386.0,0.5178805]
[1742466505082,0.00012506,85387.0,85386.0,0.2061695]
[1742466505285,0.24606306,85387.0,85386.0,0.2061695]
[1742466505489,0.00012506,85387.0,85386.0,0.2061695]
[1742466506021,0.00012506,85387.0,85386.0,0.2001695]
[1742466506444,0.00012506,85387.0,85386.0,0.2061695]
[1742466506881,0.00012506,85387.0,85386.0,0.2001695]
[1742466507080,0.0184926,85387.0,85386.0,0.2001695]
[1742466507325,0.0184926,85387.0,85386.0,0.2061695]
[1742466508105,0.0302036,85387.0,85386.0,0.3061695]
[1742466508301,0.2644306,85387.0,85386.0,0.3061695]
[1742466508863,0.2527196,85387.0,85386.0,0.3061695]
[1742466509117,0.0184926,85387.0,85386.0,0.3061695]
[1742466509550,0.2644306,85387.0,85386.0,0.3061695]
[1742466510368,0.38400563,85387.0,85386.0,0.3061695]
[1742466510725,0.2644306,85387.0,85386.0,0.3061695]
[1742466511140,0.0184926,85387.0,85386.0,0.3061695]
[1742466511547,0.0302036,85387.0,85386.0,0.3061695]
[1742466511954,0.0184926,85387.0,85386.0,0.3061695]
[1742466512797,0.0188316,85387.0,85386.0,0.3061695]
[1742466513039,0.0305426,85387.0,85386.0,0.3061695]
[1742466513480,0.15011763,85387.0,85386.0,0.3061695]
[1742466513811,0.13175009,85387.0,85386.0,0.3061695]
[1742466514400,0.27899009,85387.0,85386.0,0.3061695]
[1742466515475,0.27899009,85387.0,85386.0,0.3001695]
[1742466515881,0.27899009,85387.0,85386.0,0.3061695]
[1742466516996,0.29735775,85387.0,85386.0,0.3061695]
[1742466519659,0.3118986,85387.0,85386.0,0.27592942]
[1742466519857,0.26550985,85376.0,85375.0,0.0001695]
[1742466520061,1.00242403,85376.0,85375.0,0.0001695]
[1742466520421,0.55768,85376.0,85375.0,0.0001695]
[1742466520591,0.011711,85384.0,85375.0,0.0001695]
[1742466520798,0.011711,85385.0,85375.0,0.0001695]
[1742466521016,0.00046406,85387.0,85375.0,0.0001695]
[1742466521422,0.00046406,85387.0,85375.0,0.2344275]
[1742466521574,0.00046406,85387.0,85375.0,0.2461405]
[1742466521788,0.0235751,85381.0,85375.0,0.2461405]
[1742466522536,0.0235751,85381.0,85375.0,0.2471405]
[1742466522727,0.0235751,85381.0,85375.0,0.0128825]
[1742466523136,0.0235751,85381.0,85375.0,0.0001695]
[1742466523441,0.0235751,85381.0,85375.0,0.0041695]
[1742466524534,0.0183691,85380.0,85375.0,0.0041695]
[1742466524830,0.0183691,85380.0,85376.0,0.234255]
[1742466525017,0.0183691,85380.0,85376.0,0.195967]
[1742466525265,0.0183691,85380.0,85375.0,0.0041695]
[1742466525712,0.0183691,85380.0,85375.0,0.0001695]
[1742466525932,0.0183691,85380.0,85375.0,0.0061695]
[1742466526154,0.0183691,85380.0,85376.0,0.011712]
[1742466526414,0.0183691,85380.0,85375.0,0.0061695]
[1742466526632,0.00046406,85387.0,85386.0,0.245941]
[1742466526848,0.00046406,85387.0,85386.0,0.545941]
[1742466529512,0.00046406,85387.0,85386.0,0.550941]
[1742466529659,0.00046406,85387.0,85386.0,0.67051603]
[1742466530638,0.00046406,85387.0,85386.0,0.68505688]
[1742466531715,0.00046406,85387.0,85386.0,1.09495688]
[1742466532122,0.000339,85412.0,85411.0,0.545869]
[1742466532381,0.000339,85412.0,85411.0,0.89144403]
[1742466533328,0.000339,85441.0,85411.0,0.69787503]
[1742466533530,0.00046425,85441.0,85440.0,0.245786]
[1742466533947,0.00046425,85441.0,85432.0,0.245808]
[1742466534144,0.00046425,85441.0,85431.0,0.311705]
[1742466534351,0.01835627,85439.0,85432.0,0.245809]
[1742466534709,0.01835627,85439.0,85432.0,0.011705]
[1742466534889,0.01835627,85439.0,85431.0,0.3]
[1742466535091,0.01835627,85439.0,85438.0,0.011704]
[1742466536531,0.01835627,85439.0,85438.0,0.013704]
[1742466536757,0.01835627,85439.0,85438.0,0.247791]
[1742466537864,0.01835627,85439.0,85438.0,0.013704]
[1742466538058,0.01835627,85439.0,85438.0,0.002]
[1742466538509,0.01869527,85439.0,85438.0,0.002]
[1742466539208,0.2970943,85439.0,85438.0,0.002]
[1742466539471,0.87744098,85439.0,85438.0,1e-06]
[1742466539934,0.87744098,85439.0,85403.0,0.1170394]
[1742466539935,0.011708,85409.0,85403.0,0.1053304]
[1742466540162,0.011708,85405.0,85403.0,0.1053304]
[1742466540375,0.011709,85404.0,85403.0,0.1053304]
[1742466540581,0.27840403,85404.0,85403.0,0.1053304]
[1742466540787,0.011711,85389.0,85376.0,0.0001695]
[1742466540985,0.234217,85391.0,85378.0,0.311712]
[1742466541346,0.011711,85387.0,85378.0,0.3]
[1742466541547,0.234238,85383.0,85378.0,0.3]
[1742466541749,0.234254,85378.0,85376.0,0.00029456]
[1742466542021,0.011712,85380.0,85376.0,0.00029456]
[1742466542197,0.245959,85380.0,85376.0,0.00029456]
[1742466542416,0.011712,85377.0,85376.0,0.00029456]
[1742466542802,0.24596,85380.0,85376.0,0.00029456]
[1742466543008,0.011712,85377.0,85376.0,0.00029456]
[1742466543393,0.011712,85377.0,85376.0,0.00429456]
[1742466544057,0.1496563,85377.0,85376.0,0.00429456]
[1742466544285,0.5582563,85377.0,85376.0,0.00429456]
[1742466544491,0.57779715,85377.0,85376.0,0.10029456]
[1742466544897,0.57779715,85377.0,85376.0,0.10129456]
[1742466545125,0.60077022,85377.0,85376.0,0.10129456]
[1742466545337,0.60077022,85377.0,85376.0,0.10029456]
[1742466545338,1.98299422,85377.0,85376.0,0.10029456]
[1742466545521,1.97049622,85377.0,85376.0,0.10029456]
[1742466545755,1.14001522,85377.0,85376.0,0.10029456]
[1742466546285,0.90077022,85377.0,85376.0,0.10029456]
[1742466546505,0.90277022,85377.0,85376.0,0.10029456]
[1742466547747,0.73038937,85377.0,85376.0,0.10029456]
[1742466548008,0.72838937,85377.0,85376.0,0.10029456]
[1742466548241,0.73138937,85377.0,85376.0,0.10029456]
[1742466548720,0.72838937,85377.0,85376.0,0.10029456]
[1742466548974,0.72838937,85377.0,85376.0,0.20029456]
[1742466549205,0.73238937,85377.0,85376.0,0.20029456]
[1742466549433,0.72067737,85377.0,85376.0,0.20029456]
[1742466550082,0.31207737,85377.0,85376.0,0.20029456]
[1742466550331,0.32378937,85377.0,85376.0,0.20029456]
[1742466550809,0.32378937,85377.0,85376.0,0.2002218]
[1742466551224,0.3084201,85377.0,85376.0,0.2002218]
[1742466551427,0.3074201,85377.0,85376.0,0.2002218]
[1742466551859,0.3084201,85377.0,85376.0,0.2002218]
[1742466552277,0.3094201,85377.0,85376.0,0.2002218]
[1742466552479,0.3044201,85377.0,85376.0,0.2002218]
[1742466552684,0.3034201,85377.0,85376.0,0.2002218]
[1742466552886,0.3024201,85377.0,85376.0,0.2002218]
[1742466553106,0.3044201,85377.0,85376.0,0.2002218]